Workbook

Sheet 1-Info Section Cover Sheet
A1: Information Section
A3: The School District Representative will fill out the Information Section and include it in the Contract bid proposal packet. This will represent all information about cost, income, and service needs.
A5: When projecting average daily participation (ADP) and A la Carte/Catering information for the School District Information - Breakfast, Lunch, Supper, and Snack sheets, make sure to use the same month or months. The same month or months must also be used when projecting the revenue information on the Projected Revenue information sheet.
A7: The Bid Point Calculator and Evaluation Criteria Matrix is used to advise potential bidders of the value placed on the written and/or oral presentation.
A9: A sample Bid Point Calculator is provided, as well as suggested non-price criteria that can be used on the Bid Point Calculator.
A11: The Bid Point Calculator and Evaluation Criteria Matrix is used to calculate which bidder will be awarded the Contract. The bidder with the maximum number of points, not necessarily the lowest price bidder, will be awarded the Contract.

Sheet 2-SFA Policies
A1: SFA must attach the following district and/or food service policies to this bid packet:
A3: 1. Procurement Policy to include:
B4: a. Written code of conduct (related to School Food Service)
B5: b. District Small Purchase Threshold (if different from State and Federal)
B6: c. Bid Protest Procedures (highly recommended as a best practice)
A8: 2. Meal Charging Policy
B9: a. May include Humanitarian/Alternate Meal policy
A11: 3. Bad Debt

Sheet 3-Bid Point Calculator
A1: Bid Point Calculator and Evaluation Criteria Matrix
C2: Company Name
B4: Bid Calculation and Evaluation Criteria
B5: Bid (list bid price per meal/meal equivalent from lowest to highest)
B6: Subtract lowest bid from bid above | C6: 0.00 | D6: =+D5-C5 -> 0.00 | E6: =+E5-C5 -> 0.00 | F6: =+F5-C5 -> 0.00 | G6: =+G5-C5 -> 0.00 | H6: =+H5-C5 -> 0.00
B7: Divide answer from above by lowest bid | C7: 0.00 | D7: =+D6/C5 ->  | E7: =+E6/C5 ->  | F7: =+F6/$C$5 ->  | G7: =+G6/$C$5 ->  | H7: =+H6/$C$5 -> 
B8: Subtract answer above from 1 | C8: =ROUND(1-C7,2) -> 1.00 | D8: =1-D7 ->  | E8: =1-E7 ->  | F8: =1-F7 ->  | G8: =1-G7 ->  | H8: =1-H7 -> 
A9: 51 | B9: Multiply answer above by 51 or more | C9: =+C8*51 -> 51.00 | D9: =+D8*51 ->  | E9: =(E8*51) ->  | F9: =+F8*0.51*100 ->  | G9: =+G8*0.51*100 ->  | H9: =+H8*0.51*100 -> 
A10: Pts Below | B10: List Non-Price Criteria and Sub-criteria Below (points will total 100 when added to Bid Points)
A11: 11 | B11: Management Candidate
B12: Experience working in K-12 school foodservice 5 years or more in Michigan (5 pts)
B13: Experience staffing K-12 breakfast and lunch programs (2 pts)
B14: Experience with menu development and special events (2 pts)
B15: Experience conducting procurement (2 pts)
A16: 9 | B16: FSMC Support and Back-up
B17: Management of K-12 schools in Michigan (5 pts)
B18: Communication (2 pts)
B19: Problem resolution (2 pts)
A20: 6 | B20: Marketing and Merchandising Plan
B21: Targeting audience (2 pts)
B22: Recognition of holiday and special events (2 pts)
B23: Expanding/increasing participation in breakfast and lunch (2 pts)
A24: 4 | B24: Nutrition Education
B25: Promotional materials (2 pts)
B26: Samples/examples of materials used (2 pts)
A27: 6 | B27: Employee Training and Development
B28: Training program for foodservice employees (2 pts)
B29: Safety and sanitation (2 pts)
B30: Professional development for on-site manager (2 pts)
A31: 11 | B31: Integrity of Projected Operating Budget/Forecast
B32: Integrity of information (5 pts)
B33: Monitoring of food cost (2 pts)
B34: Monitoring of labor cost (2 pts)
B35: Financial reports (2 pts)
A36: 2 | B36: FSMC Guarantees/Guaranteed Returns
B37: Guaranteed minimum return and surplus revenue (2 pts)
A39: =SUM(A9:A38) -> 100 | B39: TOTAL | C39: =SUM(C9:C30) -> 51.00

Sheet 4-SFA Staffing Patterns
A1: SFA Employees (SY 2018-2019)
A2: CURRENT STAFFING PATTERNS
A4: School Building | B4: Job Title | C4: Hours to be Worked | D4: Total Wages/ Annual Compensation /Benefits | E4: Hrs/Wk | F4: Days/Yr | G4: Rate | H4: Long.
A5: Districtwide | B5: Van Driver | C5: =(E5/4)*F5 -> 1,322.50 | D5: =12495*1.018+7000+1080.46 -> 20,800.37 | E5: 28.75 | F5: 184.00 | G5: 10.61 | H5: 0.00
A6: Middle School | B6: Kitchen Assistant | C6: =(E6/5)*F6 -> 885.09 | D6: =((((C6/F6)*G6)*F6)*134.2%)+H6+3000 -> 16,412.65 | E6: 24.45 | F6: 181.00 | G6: 11.25 | H6: $50.00
A7: Middle School | B7: Kitchen Assistant | C7: =(E7/5)*F7 -> 445.26 | D7: 11,862.12 | E7: 12.30 | F7: 181.00 | G7: 14.58 | H7: $150.00
A8: Middle School | B8: Kitchen Assistant | C8: 807.26 | D8: 20,962.66 | E8: 22.30 | F8: 181.00 | G8: 16.35 | H8: $250.00
A9: High School | B9: Kitchen Assistant | C9: 807.26 | D9: 19,161.81 | E9: 22.30 | F9: 181.00 | G9: 14.78 | H9: $150.00
A10: Moline Christian | B10: Kitchen Manager | C10: 724.00 | D10: 19,359.26 | E10: 20.00 | F10: 181.00 | G10: 16.58 | H10: $250.00
A11: Pine Street Elementary | B11: Kitchen Assistant | C11: 946.63 | D11: 21,989.70 | E11: 26.15 | F11: 181.00 | G11: 14.83 | H11: $150.00
A12: Pine Street Elementary | B12: Kitchen Program Manager | C12: 1,267.00 | D12: 32,053.32 | E12: 35.00 | F12: 181.00 | G12: 16.94 | H12: $250.00
A13: Pine Street Elementary | B13: Kitchen Assistant | C13: 765.63 | D13: 14,896.79 | E13: 21.15 | F13: 181.00 | G13: 11.53 | H13: $50.00
A14: Dorr Elementary | B14: Kitchen Manager | C14: 1,127.63 | D14: 28,188.85 | E14: 31.15 | F14: 181.00 | G14: 16.48 | H14: $250.00
A15: Dorr Elementary | B15: Kitchen Assistant | C15: 946.63 | D15: 22,345.40 | E15: 26.15 | F15: 181.00 | G15: 15.11 | H15: $150.00
A16: Middle School | B16: Kitchen Assistant | C16: 629.88 | D16: =((((C16/F16)*G16)*F16)*134.208%)+H16+3000 -> 12,644.72 | E16: 17.40 | F16: 181.00 | G16: 11.35 | H16: $50.00
A17: Middle School | B17: Kitchen Assistant | C17: 1,350.26 | D17: =((((C17/F17)*G17)*F17)*134.2%)+H17+3000 -> 32,007.22 | E17: 37.30 | F17: 181.00 | G17: 15.87 | H17: $250.00
A18: Baker Elementary | B18: Kitchen Assistant | C18: 1,138.49 | D18: =((((C18/F18)*G18)*F18)*134.2%)+H18+3000 -> 19,718.88 | E18: 31.45 | F18: 181.00 | G18: 10.91 | H18: $50.00
A19: Dorr Elementary | B19: Kitchen Assistant | C19: 868.80 | D19: =((((C19/F19)*G19)*F19)*134.2%)+H19+3000 -> 21,473.48 | E19: 24.00 | F19: 181.00 | G19: 15.63 | H19: $250.00
A20: Pine Street Elementary | B20: Kitchen Assistant | C20: 997.31 | D20: =((((C20/F20)*G20)*F20)*134.2%)+H20+3000 -> 24,824.85 | E20: 27.55 | F20: 181.00 | G20: 16.12 | H20: $250.00
A21: Steeby Elementary | B21: Kitchen Manager | C21: 1,205.46 | D21: =((((C21/F21)*G21)*F21)*134.2%)+H21+3000 -> 30,654.30 | E21: 33.30 | F21: 181.00 | G21: 16.94 | H21: $250.00
A22: High School | B22: Kitchen Assistant | C22: 807.26 | D22: =((((C22/F22)*G22)*F22)*134.208%)+H22+3000 -> 18,014.35 | E22: 22.30 | F22: 181.00 | G22: 13.72 | H22: $150.00
A23: Dorr Elementary | B23: Kitchen Assistant | C23: 848.89 | D23: =((((C23/F23)*G23)*F23)*134.2%)+H23+3000 -> 15,250.94 | E23: 23.45 | F23: 181.00 | G23: 10.71 | H23: $50.00
A24: Baker Elementary | B24: Kitchen Assistant | C24: 662.46 | D24: =((((C24/F24)*G24)*F24)*134.2%)+H24+3000 -> 12,571.42 | E24: 18.30 | F24: 181.00 | G24: 10.71 | H24: $50.00
A25: Pine Street Elementary | B25: Kitchen Assistant | C25: 807.26 | D25: =((((C25/F25)*G25)*F25)*134.2%)+H253000 -> 14,863.46 | E25: 22.30 | F25: 181.00 | G25: 13.72 | H25: $150.00
A26: Baker Elementary | B26: Kitchen Manager | C26: 1,127.63 | D26: =((((C26/F26)*G26)*F26)*134.2%)+H26+3000 -> 28,642.83 | E26: 31.15 | F26: 181.00 | G26: 16.78 | H26: $250.00
A27: High School | B27: Kitchen Assistant | C27: 543.00 | D27: =((((C27/F27)*G27)*F27)*134.2%)+H27+3000 -> 10,651.41 | E27: 15.00 | F27: 181.00 | G27: 10.50
A28: High School | B28: Kitchen Program Manager | C28: 1,422.66 | D28: =((((C28/F28)*G28)*F28)*134.2%)+H28+3000 -> 37,582.13 | E28: 39.30 | F28: 181.00 | G28: 17.93 | H28: $350.00
A29: Middle School | B29: Kitchen Program Manager | C29: 1,267.00 | D29: =((((C29/F29)*G29)*F29)*134.208%)+H29+3000 -> 32,786.21 | E29: 35.00 | F29: 181.00 | G29: 17.37 | H29: $250.00
A30: High School | B30: Kitchen Assistant | C30: 1,086.00 | D30: =((((C30/F30)*G30)*F30)*134.2%)+H33000 -> 23,755.82 | E30: 30.00 | F30: 181.00 | G30: 16.30 | H30: $250.00
A31: High School | B31: Kitchen Assistant | C31: 765.63 | D31: =((((C31/F31)*G31)*F31)*134.2%)+H31+3000 -> 16,427.73 | E31: 21.15 | F31: 181.00 | G31: 13.02 | H31: $50.00
A32: High School | B32: Kitchen Assistant | C32: 765.63 | D32: =((((C32/F32)*G32)*F32)*134.2%)+H32+3000 -> 14,054.26 | E32: 21.15 | F32: 181.00 | G32: 10.71 | H32: $50.00
A33: Districtwide | B33: Substitutes | C33: Varies | D33: =9000*134.2%+3000 -> 15,078.00
A34: Districtwide | B34: Clerical | C34: =20*36 -> 720.00 | D34: =28585*134.2%+1000 -> 39,361.07
A35: Total
C36: =SUM(C5:C35) -> 27,059 | D36: =SUM(D5:D34) -> 648,396.00

Sheet 5-FSMC Staffing Patterns
A1: FSMC Employees (SY 2018-2019)
A2: CURRENT STAFFING PATTERNS
D3: Mark with an "X" to indicate if employee compensation included the following:
A4: School Building | B4: Job Title | C4: Hours to be Worked | D4: Employee Health | E4: Family Health | F4: Dental | G4: Vision | H4: Retirement | I4: Paid Time Off/ Holiday/ Sick | J4: Life Insurance
A5: District-wide | B5: Food Service Director | C5: 40.00 | D5: X | E5: X | F5: X | G5: X | H5: X | I5: X | J5: X

Sheet 6-FSMC Proposed Staff Patterns
A1: PROPOSED STAFFING PATTERNS BY FSMC
A2: To be completed by FSMC for districts requesting transition of employees to FSMC.
A4: School Building | B4: Job Title | C4: Hours to be Worked

Sheet 7-Cost Information
A1: PROJECTED COST INFORMATION
A3: Based 180 Days of Service in School Year 2018-2019
A6: EXPENSES | B6: TOTAL COST
A7: (From Food Service Account)
A8: Food Cost (including commodities delivery charge) | B8: $571,500.00
A9: Food Cost for Fresh Fruit and Vegetable Program (FFVP) Only | B9: $0.00
A10: Labor - SFA Employees (not a bid item) | B10: $479,005.00
A11: Labor - FSMC Employees | B11: $0.00
A12: Fringe Benefits - SFA Employees (not a bid item) | B12: $169,391.00
A13: Fringe Benefits - FSMC Employees | B13: $0.00
A14: On-Site Manager Salary & Benefits | B14: Bid Item
A15: Contracted Services* (vending) | B15: $5,000.00
A16: Transportation Cost (mileage) | B16: $2,600.00
A17: Non-Food (Supplies and Other Materials) | B17: $47,500.00
A18: Non-Food (Supplies and Other Materials) FFVP Only | B18: $0.00
A19: Indirect Cost (assigned to food service) | B19: $0.00
A20: Other (Maintenance and Repair, Cleaning, Capital Outlay) | B20: $51,000.00
A21: Other (Dues and fees, other expenses, sales tax) | B21: $30,000.00
A24: Total | B24: =SUM(B8:B23) -> $1,355,996.00
A28: *FSMC Administrative Cost and FSMC Management Fee, if applicable, have not been included.

Sheet 8-Equipment List
A1: EQUIPMENT INVENTORY LIST
A2: SFA will list the food service equipment used in food service and identify if it is a SFA or FSMC provided item.
B4: Mark an "X" in the appropriate columns for each item.
A5: Equipment List | B5: Expendable (one time use) | C5: Non-Expendable (reusable) | D5: SFA | E5: FSMC
A6: High School
A7: Combi Oven | C7: x | D7: x
A8: Convection Oven (2) | C8: x | D8: x
A9: Dish Machine | C9: x | D9: x
A10: Robo coupe | C10: x | D10: x
A11: Serving Line- Multiple Pieces | C11: x | D11: x
A12: Mongolian Grill | C12: x | D12: x
A13: Slicer | C13: x | D13: x
A14: Walk in cooler and Freezer | C14: x | D14: x
A15: Walk in Blast Chiller | C15: x | D15: x
A16: Open air cooler | C16: x | D16: x
A17: Pizza Oven | C17: x | D17: x
A18: Hot holding unit- 4 | C18: x | D18: x
A19: Cold holding unit | C19: x | D19: x
A20: Gas Grill | C20: x | D20: x
A21: Turbo Oven | C21: x | D21: x
A22: Serving utensils | C22: x | D22: x
A23: Garbage disposal | C23: x | D23: x
A24: Tilt Skillet | C24: x | D24: x
A25: Range with burners | C25: x | D25: x
A26: Microwave | C26: x | D26: x
A27: Mixer | C27: x | D27: x
A28: Three compartment sink | C28: x | D28: x
A29: Prep Table - Multiple Tables | C29: x | D29: x
A30: Carts - 8 | C30: x | D30: x
A33: Middle School
A34: Oven | C34: x | D34: x
A35: Range | C35: x | D35: x
A36: Microwave | C36: x | D36: x
A37: Dishwasher | C37: x | D37: x
A38: Three compartment sink | C38: x | D38: x
A39: Serving Equipment-Multiple units | C39: x | D39: x
A40: Prep Table - Multiple Tables | C40: x | D40: x
A41: Serving utensils | C41: x | D41: x
A42: 3 door Frezzer-2 | C42: x | D42: x
A43: Hot Holding unit-2 | C43: x | D43: x
A44: Refrigerators - 3 | C44: x | D44: x
A45: Milk Cooler - 1 | C45: x | D45: x
A48: Pine Elementary
A49: Oven- 1 | C49: x | D49: x
A50: Range | C50: x | D50: x
A51: Microwave | C51: x | D51: x
A52: Dishwasher | C52: x | D52: x
A53: Three compartment sink | C53: x | D53: x
A54: Serving Equipment-Multiple units | C54: x | D54: x
A55: Prep Table - Multiple Tables | C55: x | D55: x
A56: Serving utensils | C56: x | D56: x
A57: 3 door Frezzer-1 | C57: x | D57: x
A58: Hot Holding unit-2 | C58: x | D58: x
A59: Refrigerators - 1 | C59: x | D59: x
A60: Milk Cooler - 1 | C60: x | D60: x
A61: Mixer | C61: x | D61: x
A65: Baker Elementary
A66: Oven- 1 | C66: x | D66: x
A67: Range | C67: x | D67: x
A68: Microwave | C68: x | D68: x
A69: Dishwasher | C69: x | D69: x
A70: Three compartment sink | C70: x | D70: x
A71: Serving Equipment-Multiple units | C71: x | D71: x
A72: Prep Table - Multiple Tables | C72: x | D72: x
A73: Serving utensils | C73: x | D73: x
A74: 3 door Frezzer-1 | C74: x | D74: x
A75: Hot Holding unit-1 | C75: x | D75: x
A76: Refrigerators - 1 | C76: x | D76: x
A77: Milk Cooler - 1 | C77: x | D77: x
A80: Dorr Elementary
A81: Oven- 1 | C81: x | D81: x
A82: Range | C82: x | D82: x
A83: Microwave | C83: x | D83: x
A84: Dishwasher | C84: x | D84: x
A85: Three compartment sink | C85: x | D85: x
A86: Serving Equipment-Multiple units | C86: x | D86: x
A87: Prep Table - Multiple Tables | C87: x | D87: x
A88: Serving utensils | C88: x | D88: x
A89: 3 door Frezzer-1 | C89: x | D89: x
A90: Hot Holding unit-1 | C90: x | D90: x
A91: Refrigerators - 1 | C91: x | D91: x
A92: Milk Cooler - 1 | C92: x | D92: x
A93: Carts- 3 | C93: x | D93: x
A96: Baker Elementary
A97: Oven- 1 | C97: x | D97: x
A98: Range | C98: x | D98: x
A99: Microwave | C99: x | D99: x
A100: Dishwasher | C100: x | D100: x
A101: Three compartment sink | C101: x | D101: x
A102: Serving Equipment-Multiple units | C102: x | D102: x
A103: Prep Table - Multiple Tables | C103: x | D103: x
A104: Serving utensils | C104: x | D104: x
A105: 3 door Frezzer-1 | C105: x | D105: x
A106: Hot Holding unit-1 | C106: x | D106: x
A107: Refrigerators - 1 | C107: x | D107: x
A108: Milk Cooler - 1 | C108: x | D108: x
A109: Carts- 3 | C109: x | D109: x
A111: Steeby Elementary
A112: Oven- 1 | C112: x | D112: x
A113: Range | C113: x | D113: x
A114: Microwave | C114: x | D114: x
A115: Three compartment sink | C115: x | D115: x
A116: Serving Equipment-Multiple units | C116: x | D116: x
A117: Prep Table - Multiple Tables | C117: x | D117: x
A118: Serving utensils | C118: x | D118: x
A119: 3 door Frezzer-1 | C119: x | D119: x
A120: Hot Holding unit-1 | C120: x | D120: x
A121: Refrigerators - 1 | C121: x | D121: x
A122: Milk Cooler - 2 | C122: x | D122: x
A123: Carts- 3 | C123: x | D123: x

Sheet 9-USDA Foods
A1: USDA FOODS INFORMATION
A3: SFA will attach SY 2017-2018 Year End PAL Report
A6: SY 2019-2020 Consortia Election: | B6: Great Lakes Consortia
A9: SY 2017-2018 Annual Delivery Fees: | B9: $1,347.50
A12: Please describe any major changes that took place in the district between SY 2017-2018 and SY 2018-2019 that would impact USDA Food Entitlement Usage.

Sheet 10-SD Info - Brkfst
A1: SCHOOL DISTRICT INFORMATION: BREAKFAST PROGRAM
A2: PROJECTED PRICES/COUNTS/OTHER INCOME
A3: NSLP/CACFP/SFSP
C5: Meal Prices | E5: COUNTS *Reimbursable Meal ADP | H5: Projected Total for School Year
A6: School Building | B6: Enrollment | C6: Adult | D6: Student | E6: Paid | F6: Free | G6: Reduced | H6: A la Carte & Other Income
A7: NSLP
A8: Baker Elementary | B8: 464 | C8: $2.00 | D8: $1.75 | E8: =414/23 -> 18.00 | F8: =1246/23 -> 54.17 | G8: =318/23 -> 13.83
A9: Steeby Elementary | B9: 426 | C9: $2.00 | D9: $1.75 | E9: =355/23 -> 15.43 | F9: =1069/23 -> 46.48 | G9: =240/23 -> 10.43
A10: Dorr Elementary | B10: 608 | C10: $2.00 | D10: $1.75 | E10: =299/23 -> 13.00 | F10: =1337/23 -> 58.13 | G10: =136/23 -> 5.91
A11: Pine Street Elementy | B11: 494 | C11: $2.00 | D11: $2.00 | E11: =221/23 -> 9.61 | F11: =1201/23 -> 52.22 | G11: =189/23 -> 8.22
A12: Middle School | B12: 494 | C12: $2.00 | D12: $2.00 | E12: =90/23 -> 3.91 | F12: =759/23 -> 33.00 | G12: =129/23 -> 5.61
A13: High School | B13: 912 | C13: $2.00 | D13: $2.00 | E13: =299/23 -> 13.00 | F13: =1576/23 -> 68.52 | G13: =265/23 -> 11.52
A16: Total | E16: =SUM(E8:E15) -> 72.96 | F16: =SUM(F8:F15) -> 312.52 | G16: =SUM(G8:G15) -> 55.52 | H16: $0.00
A18: CACFP
A19: SFA does not currently participate, but reserves the right to add in the future.
A24: Total | E24: =SUM(E19:E23) -> 0.00 | F24: =SUM(F19:F23) -> 0.00 | G24: =SUM(G19:G23) -> 0.00 | H24: $0.00
A26: SFSP
A27: SFA does not currently participate, but reserves the right to add in the future.
A32: Total | E32: =SUM(E27:E31) -> 0.00 | F32: =SUM(F27:F31) -> 0.00 | G32: =SUM(G27:G31) -> 0.00 | H32: $0.00
H33: =SUM(H16,H24,H32) -> $0.00
A35: The ADP (Average Daily Participation) and A la Carte/Catering Information is based on data from a projection for the current school year (2018-2019) using the month of October, 2018. Use this ADP to determine the number of projected breakfasts sold on the Revenue Information Sheet for the entire school year. For example, the projected number of paid breakfasts sold is determined by taking the paid ADP above and multiplying it by the number of days of breakfast indicated at the top of the Projected Revenue Information sheet.
A37: *ADP by building is calculated using the following formula: number of meals served divided by the number of service days per building.

Sheet 11-SD Info - Lunch
A1: SCHOOL DISTRICT INFORMATION: LUNCH PROGRAM
A2: PROJECTED PRICES/COUNTS/OTHER INCOME
A3: NSLP/CACFP/SFSP
C5: Meal Prices | E5: COUNTS *Reimbursable Meal ADP | H5: Projected Total for School Year
A6: School Builiding | B6: Enrollment | C6: Adult | D6: Student | E6: Paid | F6: Free | G6: Reduced | H6: A la Carte & Other Income
A7: NSLP
A8: Baker Elementary | B8: 464 | C8: $4.65 | D8: $2.55 | E8: =1548/23 -> 67.30 | F8: =2651/23 -> 115.26 | G8: =808/23 -> 35.13 | H8: $500.00 | J8: Add'l milk
A9: Steeby Elementary | B9: 426 | C9: $4.65 | D9: $2.55 | E9: =1713/23 -> 74.48 | F9: =2429/23 -> 105.61 | G9: =627/23 -> 27.26 | H9: $500.00 | J9: Add'l milk
A10: Dorr Elementary | B10: 608 | C10: $4.65 | D10: $2.55 | E10: =2575/23 -> 111.96 | F10: =3133/23 -> 136.22 | G10: =679/23 -> 29.52 | H10: $500.00 | J10: Add'l milk
A11: Pine Street Elementy | B11: 494 | C11: $4.65 | D11: $2.90 | E11: =2349/23 -> 102.13 | F11: =3144/23 -> 136.70 | G11: =854/23 -> 37.13 | H11: $33,156.41 | J11: 2 pricing cards
A12: Middle School | B12: 494 | C12: $4.65 | D12: $2.90 | E12: =2286/23 -> 99.39 | F12: =2474/23 -> 107.57 | G12: =629/23 -> 27.35 | H12: $34,656.41 | J12: 2 pricing cards
A13: High School | B13: 912 | C13: $4.65 | D13: $2.90 - $3.90 | E13: =5172/23 -> 224.87 | F13: =4406/23 -> 191.57 | G13: =983/23 -> 42.74 | H13: $69,312.83 | J13: 4 pricing cards
A14: Moline Christian School | B14: 31 | C14: $4.65 | D14: $2.70 | E14: 49.80 | F14: 1.60 | G14: 5.10 | H14: $0.00
A15: St. Therese Catholic School | B15: 254 | C15: $4.65 | D15: $2.70 | E15: 8.87 | F15: 1.83 | G15: 1.65 | H15: $0.00
A16: Total | E16: =SUM(E8:E15) -> 738.80 | F16: =SUM(F8:F15) -> 796.34 | G16: 205.88 | H16: =SUM(H8:H15) -> $138,625.65
A18: CACFP
A19: SFA does not currently participate, but reserves the right to add in the future.
A24: Total | E24: =SUM(E19:E23) -> 0.00 | F24: =SUM(F19:F23) -> 0.00 | G24: =SUM(G19:G23) -> 0.00 | H24: $0.00
A26: SFSP
A27: SFA does not currently participate, but reserves the right to add in the future.
A33: Total | E33: =SUM(E27:E32) -> 0.00 | F33: =SUM(F27:F32) -> 0.00 | G33: =SUM(G27:G32) -> 0.00 | H33: $0.00
H34: =SUM(H16,H24,H33) -> $138,625.65
A36: The ADP (Average Daily Participation) and A la Carte/Catering Information is based on data from a projection for the current school year (2018-2019) using the month of October, 2018. Use this ADP to determine the number of projected lunches sold on the Revenue Information Sheet for the entire school year. For example, the projected number of paid lunches sold is determined by taking the paid ADP above and multiplying it by the number of days of lunch indicated at the top of the Projected Revenue Information sheet.
A38: *ADP by building is calculated using the following formula: number of meals served divided by the number of service days per building.

Sheet 12-SD Info - Snacks
A1: SCHOOL DISTRICT INFORMATION: SNACK PROGRAM
A2: PROJECTED PRICES/COUNTS/OTHER INCOME
A3: NSLP/CACFP/SFSP
C5: Meal Prices | E5: COUNTS *Reimbursable Snacks ADP
A6: School Building | B6: Enrollment | C6: Adult | D6: Student | E6: Paid | F6: Free | G6: Reduced
A7: NSLP
A8: SFA does not currently participate, but reserves the right to add in the future.
A15: Total | E15: =SUM(E7:E14) -> 0.00 | F15: =SUM(F7:F14) -> 0.00 | G15: =SUM(G7:G14) -> 0.00
A17: CACFP
A18: SFA does not currently participate, but reserves the right to add in the future.
A24: Total | E24: =SUM(E17:E23) -> 0.00 | F24: =SUM(F17:F23) -> 0.00 | G24: =SUM(G17:G23) -> 0.00
A26: SFSP
A27: SFA does not currently participate, but reserves the right to add in the future.
A32: Total | E32: =SUM(E27:E31) -> 0.00 | F32: =SUM(F27:F31) -> 0.00 | G32: =SUM(G26:G31) -> 0.00
A35: The ADP (Average Daily Participation) and A la Carte/Catering Information is based on data from a projection for the current school year (2018-2019) using the month(s) of insert month(s), year. Use this ADP to determine the number of projected snacks sold on the Revenue Information Sheet for the entire school year. For example, the projected number of paid snacks sold is determined by taking the paid ADP above and multiplying it by the number of days of snack indicated at the top of the Projected Revenue Information sheet.
A37: *ADP by building is calculated using the following formula: number of meals served divided by the number of service days per building.

Sheet 13-SD Info - Suppers
A1: SCHOOL DISTRICT INFORMATION: SUPPER PROGRAM
A2: PROJECTED PRICES/COUNTS/OTHER INCOME
A3: CACFP/SFSP
C5: Meal Prices | E5: COUNTS *Reimbursable Meal ADP
A6: School Building | B6: Enrollment | C6: Adult | D6: Student | E6: Paid | F6: Free | G6: Reduced
A7: CACFP
A8: SFA does not currently participate, but reserves the right to add in the future.
A17: Total | E17: =SUM(E7:E16) -> 0.00 | F17: =SUM(F7:F16) -> 0.00 | G17: =SUM(G7:G16) -> 0.00
A19: SFSP
A20: SFA does not currently participate, but reserves the right to add in the future.
A29: Total | E29: =SUM(E20:E28) -> 0.00 | F29: =SUM(F20:F28) -> 0.00 | G29: =SUM(G19:G28) -> 0.00
A32: The ADP (Average Daily Participation) and A la Carte/Catering Information is based on data from a projection for the current school year (2018-2019) using the month(s) of insert month(s), year. Use this ADP to determine the number of projected suppers sold on the Revenue Information Sheet for the entire school year. For example, the projected number of paid suppers sold is determined by taking the paid ADP above and multiplying it by the number of days of supper indicated at the top of the Projected Revenue Information sheet.
A34: *ADP by building is calculated using the following formula: number of meals served divided by the number of service days per building.

Sheet 14-Revenue Info
A1: PROJECTED REVENUE INFORMATION
A3: Based on 180 of Breakfast, 175 days of Lunch, 0 days of Snacks for NSLP
A5: LOCAL REVENUE
B6: Number Sold | C6: Price
A7: Breakfasts
A8: Elementary Paid | B8: =SUM('10-SD Info - Brkfst'!E8:E10)*180 -> 8,358 | C8: $1.75 | D8: =+B8*C8 -> $14,626.96
A9: Secondary Paid (inc. Pine) | B9: =SUM('10-SD Info - Brkfst'!E11:E13)*180 -> 4,774 | C9: $2.00 | D9: =+B9*C9 -> $9,547.83
A10: Reduced | B10: =SUM('10-SD Info - Brkfst'!G16)*180 -> 9,994 | C10: $0.30 | D10: =+B10*C10 -> $2,998.17
A11: Adult | B11: 0 | C11: $4.65 | D11: =+B11*C11 -> $0.00
C12: Breakfast Revenue | D12: =SUM(D8:D11) -> $27,172.96
A14: Lunches
A15: Elementary Paid | B15: =SUM('11-SD Info - Lunch'!E8:E10)*175 -> 44404 | C15: $2.55 | D15: =B15*C15 -> $113,231.09
A16: Parochial Paid | B16: =SUM('11-SD Info - Lunch'!E14:E15)*175 -> 10267 | C16: $2.70 | D16: =B16*C16 -> $27,721.58
A17: Pine & MS Paid | B17: =SUM('11-SD Info - Lunch'!E11:E12)*175 -> 35266 | C17: $2.90 | D17: =B17*C17 -> $102,272.28
A18: HS Paid | B18: =SUM('11-SD Info - Lunch'!E13)*175 -> 39352 | C18: $2.90 - $3.90 | D18: =(((2.9+3.4+3.9)/3)*B18) -> $133,797.39
A19: Reduced | B19: =SUM('11-SD Info - Lunch'!G16)*175 -> 36029 | C19: $0.40 | D19: =+B19*C19 -> $14,411.63
A20: Adult | B20: 617 | C20: $4.65 | D20: =+B20*C20 -> $2,869.05
C21: Lunch Revenue | D21: =SUM(D15:D20) -> $394,303.02
A23: Special Milk
A24: Elementary Paid | D24: =+B24*C24 -> $0.00
A25: Secondary Paid | D25: =+B25*C25 -> $0.00
C26: Special Milk Revenue | D26: $0.00
A28: *A la Carte Sales | B28: Actual 17-18 sales | C28: = | D28: $138,625.65 | F28: =D28+D29 -> $205,643.36
A29: **Catering and Other Functions | B29: Actual 17-18 sales | C29: = | D29: $67,017.71
A30: Other (i.e. Head Start, Senior Citizens, etc.) | C30: = | D30: $0.00
A31: Other Sponsors | C31: = | D31: $0.00
A32: Summer Programs | C32: = | D32: $36,215.93
C34: Total Local Revenue | D34: =+D12+D21+D26+D28+D29+D30+D31+D32 -> $663,335.26
A36: *Includes income from vending machines, if applicable.
A37: **Identify schools having vended meal contracts with the school district in the School District
A38: Information sheet for Breakfast, Lunch, etc. and Building Demographics/Service Information sheet.
A39: FEDERAL REIMBURSEMENTS
B40: Number Sold | C40: Federal Rates for SY 2018-19
A41: Breakfasts: NSLP
A42: Free | C42: 1.79 | D42: =+B42*C42 -> $0.00 | F42: =SUM(D42:D55) -> $142,843.15 | G42: =SUM(B42:B55)/2 -> 39690
A43: Free, severe need | B43: =SUM('10-SD Info - Brkfst'!F16)*180 -> 56,254 | C43: 2.14 | D43: =+B43*C43 -> $120,383.37
A44: Reduced | C44: 1.49 | D44: =+B44*C44 -> $0.00
A45: Reduced, severe need | B45: =SUM('10-SD Info - Brkfst'!G16)*180 -> 9,994 | C45: 1.84 | D45: =+B45*C45 -> $18,388.80
A46: Paid | B46: =SUM('10-SD Info - Brkfst'!E16)*180 -> 13,132 | C46: 0.31 | D46: =+B46*C46 -> $4,070.97
A48: Breakfast: CACFP
A49: Free, At-Risk | C49: 1.79 | D49: =+B49*C49 -> $0.00
A50: Reduced | C50: 1.49 | D50: =+B50*C50 -> $0.00
A51: Paid | C51: 0.31 | D51: =+B51*C51 -> $0.00
A53: Breakfast: SFSP
A54: Urban or Vended sites | C54: 2.1900 | D54: =+B54*C54 -> $0.00
A55: Rural or Self-prep sites | C55: 2.2325 | D55: =+B55*C55 -> $0.00
A57: Lunches: NSLP
A58: Free | C58: 3.31 | D58: =+B58*C58 -> $0.00 | F58: =SUM(D58:D78) -> $624,486.99 | G58: =SUM(B58:B78) -> 304679
A59: Free + $.06 | B59: =SUM('11-SD Info - Lunch'!F16)*175 -> 139,360 | C59: 3.37 | D59: =+B59*C59 -> $469,643.31
A60: Free, severe need | C60: 3.33 | D60: $0.00
A61: Free, severe need + $.06 | C61: 3.39 | D61: =+B61*C61 -> $0.00
A62: Reduced | C62: 2.91 | D62: $0.00
A63: Reduced + $.06 | B63: =SUM('11-SD Info - Lunch'!G16)*175 -> 36,029 | C63: 2.97 | D63: =+B63*C63 -> $107,006.36
A64: Reduced, severe need | C64: 2.93 | D64: $0.00
A65: Reduced, severe need + $.06 | C65: 2.99 | D65: =+B65*C65 -> $0.00
A66: Paid | C66: 0.31 | D66: $0.00
A67: Paid + $.06 | B67: =SUM('11-SD Info - Lunch'!E16)*175 -> 129,290 | C67: 0.37 | D67: =+B67*C67 -> $47,837.33
A68: Paid, severe need | C68: 0.33 | D68: =+B68*C68 -> $0.00
A69: Paid, severe need + $.06 | C69: 0.39 | D69: $0.00
A71: Lunches: CACFP
A72: Free, At-Risk | C72: 3.31 | D72: =+B72*C72 -> $0.00
A73: Reduced | C73: 2.91 | D73: =+B73*C73 -> $0.00
A74: Paid | C74: 0.31 | D74: =+B74*C74 -> $0.00
A76: Lunches: SFSP
A77: Urban or Vended sites | C77: 3.8575 | D77: =+B77*C77 -> $0.00
A78: Rural or Self-prep sites | C78: 3.9225 | D78: =+B78*C78 -> $0.00
A80: Snacks: NSLP
A81: Free | C81: 0.91 | D81: =+B81*C81 -> $0.00 | F81: =SUM(D81:D91) -> 0 | G81: =SUM(B81:B92)/3 -> 0
A82: Reduced | C82: 0.45 | D82: =+B82*C82 -> $0.00
A83: Paid | C83: 0.08 | D83: =+B83*C83 -> $0.00
A85: Snacks: CACFP
A86: Free, At-Risk | C86: 0.91 | D86: =+B86*C86 -> $0.00
A87: Reduced | C87: 0.45 | D87: =+B87*C87 -> $0.00
A88: Paid | C88: 0.08 | D88: =+B88*C88 -> $0.00
A90: Snacks: SFSP
A91: Urban or Vended sites | C91: 0.9100 | D91: =+B91*C91 -> $0.00
A92: Rural or Self-prep sites | C92: 0.9300 | D92: =+B92*C92 -> $0.00
A94: Suppers: CACFP
A95: Free, At-Risk | C95: 3.31 | D95: =+B95*C95 -> $0.00 | F95: =SUM(D95:D100) -> 0 | G95: =SUM(B95:B101) -> 0
A96: Reduced | C96: 2.91 | D96: =+B96*C96 -> $0.00
A97: Paid | C97: 0.31 | D97: =+B97*C97 -> $0.00
A99: Suppers: SFSP
A100: Urban or Vended sites | C100: 3.8575 | D100: =+B100*C100 -> $0.00
A101: Rural or Self-prep sites | C101: 3.9225 | D101: =+B101*C101 -> $0.00
C103: Total Meals Reimbursement | D103: =SUM(D42:D100) -> $767,330.14
A105: Special Milk
A106: Paid | C106: 0.2050 | D106: =+B106*C106 -> $0.00 | F106: =SUM(D106:D107) -> 0 | G106: =SUM(B106:B107) -> 0
A107: Free | C107: enter avg cost
C109: Special Milk Reimbursement | D109: =+D106+D107 -> $0.00
B111: Total Federal Reimbursement | D111: =+D103+D109 -> $767,330.14
B112: 31a Payment (State Aid Status Report | D112: $959.00
B113: 31d Payment (State Aid Status Report) | D113: $59,174.53
B114: 31f Payment (State Aid Status Report)
B115: Fresh Fruit and Vegetable (FFVP) Grant
B116: Interest Income
B117: Total Local Revenue | D117: =+D34 -> $663,335.26
C119: Total Revenue | D119: =SUM(D111:D118) -> $1,490,798.93
A122: These figures are based on projected revenue for the current school year (2018-2019) using the month of October, 2018. Multiply the ADP from the SD Info - Breakfast and Lunch sheets by the number of days above to determine the number of projected meals sold.

Sheet 15-Meal Equiv Calculator
A1: PROJECTED MEALS/MEAL EQUIVALENTS CALCULATOR
A3: CELLS ARE AUTO-FILL; DO NOT ENTER MEAL COUNTS ON THIS PAGE
A7: Federal Free Lunch Rate | B7: $3.3100
A8: + Commodity Rate | B8: $0.2350
A9: Total | B9: =SUM(B7:B8) -> $3.5450
B10: *A la carte and catering income | C10: =SUM('14-Revenue Info'!F28) -> $205,643.36
C11: A la Carte/catering Meal Equivalents (Divide Income by Total) | D11: =+C10/B9 -> 58009
C12: Breakfasts Served | D12: =+'14-Revenue Info'!$G$42 -> 39690
C13: Lunches Served | D13: =+'14-Revenue Info'!$G$58 -> 304679
C14: Snacks Served | D14: =+'14-Revenue Info'!$G$81 -> 0
C15: Suppers Served | D15: =+'14-Revenue Info'!$G$81 -> 0
C16: *Total Meals and snacks served, A la Carte Meal Equivalents | D16: =SUM(D11:D15) -> 402379
A17: *Note that we are opening a new wing in our Middle School.
A20: A la Carte income includes any income from dining room operations which are not part of the
A21: Reimbursable Meals Program.
A23: *The A la Carte and catering income, total meals, snacks, and meal equivalents is based on data from a
A24: projection for the current school year (2018-2019) using the month of October, 2018.

Sheet 16-Bldg Demographics
A1: BUILDING DEMOGRAPHICS
A4: School Building | B4: Grades (SY 2018-19) | C4: Grades (SY 2019-20) | D4: Service Times | F4: # of Days/Year
D5: Breakfast | E5: Lunch | F5: Breakfast | G5: Lunch | H5: Snack | I5: Supper
A6: Baker Elementary | B6: Pre-K - 1 | C6: Pre-K - 1 | D6: 8:45 am - 9:05 am | E6: 11:15 am - 1:30 pm | F6: 180 | G6: 175 | H6: 0 | I6: 0
A7: Dorr Elementary | B7: Pre-K - 4 | C7: Pre-K - 3 | D7: 8:15 am - 8:50 am | E7: 11:20 am - 1:15 pm | F7: 180 | G7: 175 | H7: 0 | I7: 0
A8: Steeby Elementary | B8: 2 - 4 | C8: 2 - 3 | D8: 8:30 am - 8:45 am | E8: 10:30 am - 1:05 pm | F8: 180 | G8: 175 | H8: 0 | I8: 0
A9: Pine Street Elementary | B9: 5 - 6 | C9: 4 - 5 | D9: 7:15 am - 7:30 am | E9: 11:05 am - 12:40 pm | F9: 180 | G9: 175 | H9: 0 | I9: 0
A10: Middle School | B10: 7 - 8 | C10: 6 - 8 | D10: 7:15 am - 7:45 am | E10: 11:16 am - 12:44 pm | F10: 180 | G10: 175 | H10: 0 | I10: 0
A11: High School | B11: 9 - 12 | C11: 9 - 12 | D11: 7:15 am - 7:40 am | E11: 11:08 am - 12:37 pm | F11: 180 | G11: 175 | H11: 0 | I11: 0
A12: Moline Christian | B12: Pre-K - 8 | C12: Pre-K - 8 | D12: N/A | E12: 12:00 pm - 12:20 pm | F12: 0 | G12: 175 | H12: 0 | I12: 0
A13: St. Therese | B13: Pre-K - 6 | C13: Pre-K - 6 | D13: N/A | E13: 12:15 pm - 12:35 pm | F13: 0 | G13: 175 | H13: 0 | I13: 0
A15: *Note that we are opening a new wing in our Middle School.
A16: **Additionally, note that we are starting prior to Labor Day next school year; 8/26/19 is the first day for students.
A18: List school(s) or sites having VENDED meal contract(s) with the School District:
A20: List Child Nutrition Program Meals Provided | B20: List Types of Meals Provided | D20: Is there a written contract/agreement? Yes or No | E20: Anticipated $ Value of Vended Agreement
A21: N/A

Sheet 17-Services by Location
A1: SERVICES BY LOCATION: The services that are indicated below with an "x" are to be provided at the following locations. Indicate either Full Serve OR Offer vs. Serve, not both.
A3: School Building | B3: Full Serve Breakfast | C3: Offer vs. Serve Breakfast | D3: Full Serve Lunch | E3: Offer vs. Serve Lunch | F3: A la Carte | G3: Adult Meals | H3: Split Session Kindergarten Special Milk
A4: Baker Elementary | C4: X | E4: X | F4: X | G4: X
A5: Dorr Elementary | C5: X | E5: X | F5: X | G5: X
A6: Steeby Elementary | C6: X | E6: X | F6: X | G6: X
A7: Pine Street Elementary | C7: X | E7: X | F7: X | G7: X
A8: Middle School | C8: X | E8: X | F8: X | G8: X
A9: High School | C9: X | E9: X | F9: X | G9: X
A10: Moline Christian | E10: X | G10: X
A11: St. Therese | E11: X | G11: X

Sheet 18-Cost Responsibility Detail
A1: Cost Responsibility Detail Sheet (to be completed by SFA)
A3: Indicate with an "x" whether the cost will be paid by the FSMC, the School District, or whether the cost does not apply to the prospective contract.
B5: Areas of Responsibility | E5: FSMC | G5: SFA | I5: N/A
A7: Food
B8: Food Purchases | E8: X
B9: Commodity Delivery & Processing Charges | E9: X
B10: Storage/Warehousing Charges | E10: X
B11: Processing and Payment of Invoices | E11: X
A13: Non-Food
B14: Cleaning/Janitorial Supplies | E14: X
B15: Paper/Disposable Supplies | E15: X
B16: Tickets/Tokens/Cards | G16: X
A18: Labor | B18: FSMC Employees:
B19: Salary/Wages | E19: X
B20: Fringe Benefits (Vacation, Sick Leave, Holiday Pay) | E20: X
B21: Insurance (Life, Medical, Dental) | E21: X
B22: Retirement - Social Security | E22: X
B23: Payroll Taxes | E23: X
B24: Workers Compensation | E24: X
B25: Unemployment Compensation | E25: X
B26: Uniforms - Tuition Reimbursement | E26: X
B27: Preparation & Processing of Payroll | E27: X
B29: SFA Employees:
B30: Wages | G30: X
B31: Fringe Benefits (Vacation, Sick Leave, Holiday Pay) | G31: X
B32: Insurance (Life, Medical, Dental) | G32: X
B33: Retirement - Social Security | G33: X
B34: Payroll Taxes | G34: X
B35: Workers Compensation | G35: X
B36: Unemployment Compensation | G36: X
B37: Uniforms - Tuition Reimbursement | G37: X
B38: Preparation & Processing of Payroll | G38: X
A40: Equipment Replacement, Maintenance, & Repair
B41: Major, Non-expendable | G41: X
B42: Expendable:
B43: Silverware/Glassware/Trays/Utensils
C44: Initial Inventory | G44: X
C45: Replacement During Operation | E45: X
A47: Telephone/Computer
B48: Local | G48: X
B49: Long Distance | G49: X
B50: Internet Access | G50: X
A52: Office Materials and Supplies
B53: Paper | E53: X
B54: Printing | E54: X | G54: X
B55: Postage | E55: X | G55: X
B57: Areas of Responsibility | E57: FSMC | I57: N/A
A59: Linens and Laundry | I59: X
A61: Trash Removal
B62: From Kitchen | E62: X | G62: X
B63: From Dining Area | G63: X
B64: From Premises | G64: X
A66: Pest Control | G66: X
A68: Insurance
B69: Liability Insurance (Product and Public) | E69: X | G69: X
B70: Insurance on Supplies/Inventory | E70: X | G70: X
B71: Product Liability | E71: X
A73: Equipment Rental (explain) | I73: X
A75: Car/Truck Rental (explain) | I75: X
A77: Vehicle Maintenance and Transportation | G77: X
A79: Travel and Training
B80: Professional Standards Training | E80: X | G80: X
A82: Taxes and Licenses | E82: X | G82: X
A84: Promotional and Educational Materials | E84: X
A86: Cleaning Responsibilties
B87: Preparation Areas | G87: X
B88: Serving Areas | G88: X
B89: Kitchen Floors | G89: X
B90: Dining Room Floors | G90: X
B91: Hoods, Duct Work | G91: X
B92: Routine Cleaning of Tables and Chairs | G92: X
B93: Cafeteria Walls | G93: X
B94: Light Fixtures | G94: X
B95: Windows | G95: X
B96: Grease Traps | G96: X
B97: Restrooms | G97: X

Sheet 19-Claims for Reimbursement
A1: CLAIM REIMBURSEMENTS
A2: MDE will supply the district with claim data for appropriate months.
A3: SFA will identify which claim(s) were used to calculate ADP on the SDI pages.
A5: See attached.

Sheet 20-Breakfast Menu
A1: Attach a sample 21-day cycle Breakfast Menu prepared by the SFA. This menu must have
A2: 21 or more days that actually have breakfast being served to the students. This menu
A3: must be used for the first 21-day cycle of the new school year.
A5: See attached.

Sheet 21-Lunch Menu
A1: Attach a sample 21-day cycle Lunch Menu prepared by the SFA. This menu must have
A2: 21 or more days that actually have lunch being served to the students. This menu
A3: must be used for the first 21-day cycle of the new school year.
A5: See attached.

Sheet 22-A la Carte
A1: A la Carte Information
A3: Insert or attach a separate PDF of the SFA's A la Carte items and pricing.
A6: See attached.

Sheet 23-Food Spec Cover Sht
A1: School Meals Program - Food Specifications Cover Sheet
A3: SEE ATTACHED DOCUMENT Nutrition Standards, Food Specifications, Meal Patterns
A5: Notes
A7: The USDA may update program requirements at any time.
A9: The Vendor is responsible to adhere to the most current USDA guidance at the time of bid submission and must continuously ensure meals are in compliance with USDA requirements for the duration of the contract.
A11: The SFA must monitor the Vendor's compliance with these requirements in accordance with the terms set forth in the RFP.
A13: Each meal must include the appropriate serving of each required food component and must be consistent with the targeted dietary specifications for sodium, calories, saturated and trans fat.
A15: Additional information about School Meals, Meal Pattern Requirements, Nutrition Standards, Regulations, Policy Memos, and Guidance Materials can be found at the following links:
A16: Click for Link to MDE-School Nutrition Programs-National School Lunch Program
A17: Click for Link to USDA-School Meals Nutrition Standards
A18: Click for Link to USDA-School Meals - Policy
A20: While not inclusive, here are a few key USDA Policy memos that may be helpful:
A21: 1. USDA Memo SP 10-2012 (v.9) August 3, 2015 - Q & As on the Final Rule - "Nutrition Standards in the NSLP & SBP"
A22: 2. USDA Memo SP 41-2015, July 21, 2015 - Updated OVS Guidance (SY 2015-16)
A24: Additional Child Nutrition Program Information links:
A25: Click for Link to MDE-Food and Nutrition Programs-Summer Food Service Program
A26: Click for Link to MDE-Food and Nutrition Programs-Child and Adult Care Food Program
A27: Click for Link to MDE-Food and Nutrition Programs-School Nutrition Programs-Fresh Fruit and Vegetable Program
A29: Enter Specific Requirements for this SFA: NONE
A30: WUS abides by the MDE-School Nutrition Programs - National School Lunch Program standards.

Sheet 24-Bid Sheet Cover
A1: Bid Sheet
A4: The SFA (School Food Authority) will provide a blank bid sheet with every RFP (Request for Proposal) used for a cost reimbursable contract.
A6: The FSMC (Food Service Management Company) will return the completed bid sheet in a separate envelope marked "Bid Sheet - Cost Reimbursable Contract."
A8: Use of a meal and meal equivalent figure different than the one supplied by the SFA will cause the bid to be "non-responsive."
A10: The school district representative will insert the number of meal and meal equivalents per year on the bid sheet.
A12: The bid sheet will be inserted into the RFP/Cost Reimbursable Contract after the
A13: Food Specification Sheet(s).

Sheet 25-Bid without Advance Payment
A1: Bid Sheet - Cost Reimbursable Contract
A2: Projected Operating Cost
A3: Without Advance Payment
A4: Wayland Union Schools
A6: This bid is offered by | F6: (Food Service Management Company) based upon
B8: =SUM('15-Meal Equiv Calculator'!D16) -> 402,379 | D8: equivalent meals per year.
A10: Expenses that the SFA is contracting for are indicated by an "X" in the Bid Items Column below.
G12: "X" Bid Items | J12: Cost
A14: Food Cost - Including Commodities Delivery Charge | G14: X
B15: - Net of VDA/Rebates
A17: Food Cost - FFVP ( as defined in RFP)
A19: Labor
A21: Fringe Benefits
A23: On-Site Manager Salary and Benefits | G23: X
A25: Contracted Services (not utilities or FSMC administrative costs)
A27: Transportation Cost
A29: Non-Food Cost | G29: X
A31: Non-Food Cost - FFVP (as defined in RFP)
A33: Utilities Paid by Food Service Fund
A35: Other (as defined on cost information sheet)
A37: Flat Rate for FFVP (as defined in RFP)
A39: FSMC Administrative Cost | G39: X
A41: FSMC Management Fee | G41: X
A43: Total Cost (Bid Items Only)
A46: Bid Price Per Meal (Total Cost divided by Equivalent Meals Per Year)
A49: Additional Food Service Markup (Refer to RFP) if applicable
A52: By submission of this bid, the bidder certifies that, in the event the bidder receives an award under this solicitation, the bidder shall operate in accordance with all applicable program laws and regulations. This contract shall be in effect for one year and may be renewed by mutual agreement for four additional one-year periods.
A55: Signed:
B56: Food Management Company Representative | G56: Date
A59: This form is to be submitted in a separate envelope marked: Bid Sheet - Cost Reimbursable Contract.
A61: Insert this into the contract immediately before the signature page prior to signing.
A63: The Food Service Management Company must use the bid sheet provided by the school district in the pre-bid packet when submitting its bid.
